bitfinex/quotes_BTCUSD_20240721
["timestamp","ask_amount","ask_price","bid_price","bid_amount"]
[1721543579714,0.004,66835.0,66834.0,0.74065021]
[1721543580788,0.004,66835.0,66834.0,0.74059283]
[1721543582018,0.004,66835.0,66834.0,0.97999183]
[1721543582890,0.004,66835.0,66834.0,1.09998919]
[1721543583387,0.004,66835.0,66834.0,1.33754365]
[1721543584152,0.004,66835.0,66834.0,1.40001212]
[1721543584418,0.004,66835.0,66834.0,1.39701212]
[1721543584676,0.005,66835.0,66834.0,1.40801212]
[1721543584916,0.006,66835.0,66834.0,1.41801212]
[1721543585157,0.006,66835.0,66834.0,1.39701212]
[1721543585158,0.004,66835.0,66834.0,1.39701212]
[1721543585431,0.006,66835.0,66834.0,1.42501212]
[1721543585709,0.005,66835.0,66834.0,1.41101212]
[1721543585946,0.004,66835.0,66834.0,1.41101212]
[1721543586186,0.006,66835.0,66834.0,1.30501476]
[1721543586438,0.006,66835.0,66834.0,1.30472345]
[1721543589371,0.006,66835.0,66834.0,1.18223989]
[1721543589602,0.006,66835.0,66834.0,1.3042762]
[1721543589808,0.006,66835.0,66834.0,1.1773762]
[1721543592587,0.006,66835.0,66834.0,1.1773987]
[1721543593287,0.006,66835.0,66834.0,1.33174827]
[1721543594276,0.006,66835.0,66834.0,1.1773987]
[1721543595051,0.006,66835.0,66834.0,1.2429987]
[1721543595796,0.006,66835.0,66834.0,1.24290159]
[1721543599012,0.006,66835.0,66834.0,1.17738743]
[1721543600978,0.00684,66835.0,66834.0,1.17738743]
[1721543602243,0.00684,66835.0,66834.0,1.1774325]
[1721543605153,0.00684,66835.0,66834.0,1.05533989]
[1721543605386,0.00684,66835.0,66834.0,1.24373796]
[1721543605630,0.00684,66835.0,66834.0,1.39808753]
[1721543606386,0.00684,66835.0,66834.0,1.54945067]
[1721543606861,0.00684,66835.0,66834.0,1.61595067]
[1721543608588,0.00684,66835.0,66834.0,1.61542264]
[1721543610037,0.00684,66835.0,66834.0,1.68352264]
[1721543611721,0.00684,66835.0,66834.0,1.6834101]
[1721543613376,0.00684,66835.0,66834.0,1.39696053]
[1721543614806,0.00684,66835.0,66834.0,1.12343989]
[1721543615054,0.00684,66835.0,66834.0,1.39648455]
[1721543618263,0.00684,66835.0,66834.0,1.3956732]
[1721543621862,0.00684,66835.0,66834.0,1.12343989]
[1721543622083,0.00684,66835.0,66834.0,1.39548787]
[1721543622303,0.00684,66835.0,66834.0,1.50868472]
[1721543623909,0.00684,66835.0,66834.0,1.50840732]
[1721543624660,0.00684,66835.0,66834.0,1.23663674]
[1721543624920,0.00684,66835.0,66834.0,1.39502195]
[1721543627159,0.14904,66835.0,66834.0,0.91014121]
[1721543627411,0.14904,66835.0,66834.0,0.97824121]
[1721543628081,0.14904,66835.0,66834.0,0.97780564]
[1721543629148,0.14904,66835.0,66834.0,1.39458638]
[1721543630645,0.14904,66835.0,66834.0,1.32648638]
[1721543630850,0.14904,66835.0,66834.0,1.39458638]
[1721543631061,0.14904,66835.0,66834.0,1.12343989]
[1721543631275,0.14904,66835.0,66834.0,1.39422896]
[1721543632309,0.14904,66835.0,66834.0,1.15482996]
[1721543633385,0.14904,66835.0,66834.0,0.16113253]
[1721543633386,0.368737,66835.0,66834.0,0.16113253]
[1721543633594,0.65260496,66835.0,66834.0,0.16113253]
[1721543633808,0.67484144,66835.0,66834.0,0.16113253]
[1721543634024,0.90894282,66835.0,66834.0,0.07783253]
[1721543634235,0.90894282,66835.0,66822.0,0.000924]
[1721543634236,0.1905,66823.0,66822.0,0.000924]
[1721543634448,0.1905,66823.0,66822.0,0.12278886]
[1721543634662,0.1905,66823.0,66822.0,0.13096479]
[1721543635751,0.1905,66823.0,66822.0,0.12546359]
[1721543636400,0.1905,66823.0,66822.0,0.00909993]
[1721543637526,0.1415,66823.0,66822.0,0.00909993]
[1721543637741,0.1425,66823.0,66822.0,0.00909993]
[1721543637953,0.1787213,66823.0,66822.0,0.00909993]
[1721543638161,0.1925,66823.0,66822.0,0.00909993]
[1721543638396,0.1925,66823.0,66822.0,0.000924]
[1721543638610,0.1925,66823.0,66822.0,0.00909993]
[1721543638822,0.1915,66823.0,66822.0,0.00909993]
[1721543639029,0.1905,66823.0,66822.0,0.00909993]
[1721543639231,0.1915,66823.0,66822.0,0.00909993]
[1721543639437,0.1915,66823.0,66822.0,0.01009993]
[1721543639438,0.1925,66823.0,66822.0,0.01009993]
[1721543639897,0.1915,66823.0,66822.0,0.00909993]
[1721543640110,0.2425,66823.0,66822.0,0.01009993]
[1721543640541,0.4223825,66823.0,66822.0,0.01009993]
[1721543640765,0.9002585,66823.0,66822.0,0.00909993]
[1721543640991,0.9022585,66823.0,66822.0,0.007924]
[1721543642935,0.9012585,66823.0,66822.0,0.006924]
[1721543643151,0.6618205,66823.0,66822.0,0.006924]
[1721543643369,0.6628205,66823.0,66822.0,0.007924]
[1721543643850,0.9022585,66823.0,66822.0,0.007924]
[1721543647647,0.842095,66823.0,66822.0,0.007924]
[1721543648073,0.842095,66823.0,66822.0,0.076024]
[1721543648074,0.1935,66823.0,66822.0,0.076024]
[1721543648314,0.1935,66823.0,66822.0,0.195745]
[1721543648315,0.1435,66823.0,66822.0,0.195745]
[1721543648526,0.1935,66823.0,66822.0,0.08424251]
[1721543648777,0.1935,66823.0,66822.0,0.01614251]
[1721543648778,0.2298214,66823.0,66822.0,0.01614251]
[1721543649197,0.1798214,66823.0,66822.0,0.13586351]
[1721543649407,0.1435,66823.0,66822.0,0.13586351]
[1721543650025,0.1935,66823.0,66822.0,0.01614251]
[1721543650454,0.2435,66823.0,66822.0,0.01614251]
[1721543650671,0.26785,66823.0,66822.0,0.01614251]
[1721543650896,0.1935,66823.0,66822.0,0.13586351]
[1721543651117,0.1935,66823.0,66822.0,0.37530551]
[1721543651118,0.1435,66823.0,66822.0,0.37530551]
[1721543651568,0.0648,66823.0,66822.0,0.37530551]
[1721543653092,0.1148,66823.0,66822.0,0.13586351]
[1721543653309,0.0648,66823.0,66822.0,0.37530551]
[1721543653751,0.003,66823.0,66822.0,0.37530551]
[1721543653972,0.053,66823.0,66822.0,0.37530551]
[1721543659178,0.053,66823.0,66822.0,0.49264298]
[1721543660012,0.003,66823.0,66822.0,0.97126911]
[1721543660219,0.003,66823.0,66822.0,0.75508498]
[1721543661205,0.003,66823.0,66822.0,0.99452698]
[1721543661464,0.1473,66823.0,66822.0,0.63774751]
[1721543661754,0.1473,66823.0,66822.0,0.7549407]
[1721543662391,0.1473,66823.0,66822.0,0.5154987]
[1721543662596,0.1473,66823.0,66822.0,0.7549407]
[1721543663500,0.1473,66823.0,66822.0,0.75564527]
[1721543664425,0.1473,66823.0,66822.0,0.51620327]
[1721543664864,0.1473,66823.0,66822.0,0.51629454]
[1721543665112,0.1473,66823.0,66822.0,0.75573654]
[1721543665597,0.2473,66823.0,66822.0,0.13413154]
[1721543665814,0.26203,66823.0,66822.0,0.13413154]
[1721543666726,0.2473,66823.0,66822.0,0.13413154]
[1721543668812,0.2473,66823.0,66822.0,0.13392712]
[1721543669028,0.2473,66823.0,66821.0,0.009196]
[1721543669029,0.2443,66822.0,66821.0,0.009196]
[1721543669257,1.62134092,66822.0,66821.0,0.009196]
[1721543669493,1.77569049,66822.0,66821.0,0.009196]
[1721543669749,1.84210068,66822.0,66821.0,0.009196]
[1721543669985,2.2767207,66822.0,66821.0,0.009196]
[1721543670242,2.1744207,66822.0,66821.0,0.009196]
[1721543670469,2.26993294,66822.0,66821.0,0.009196]
[1721543670929,2.13860859,66822.0,66821.0,0.009196]
[1721543671143,2.2688557,66822.0,66821.0,0.009196]
[1721543671363,2.17117006,66822.0,66821.0,0.009196]
[1721543671570,2.05489049,66822.0,66821.0,0.010196]
[1721543671809,2.04789049,66822.0,66821.0,0.010196]
[1721543672214,2.09036014,66822.0,66821.0,0.010196]
[1721543672421,2.12726903,66822.0,66821.0,0.010196]
[1721543673030,2.03726903,66822.0,66821.0,0.010196]
[1721543673230,2.01329739,66822.0,66821.0,0.010196]
[1721543673460,2.03726991,66822.0,66821.0,0.010196]
[1721543674281,1.97089049,66822.0,66821.0,0.010196]
[1721543674488,2.0372801,66822.0,66821.0,0.010196]
[1721543674696,2.03726967,66822.0,66821.0,0.010196]
[1721543675101,2.12726967,66822.0,66821.0,0.010196]
[1721543675305,2.21859049,66822.0,66821.0,0.010196]
[1721543675516,2.26859049,66822.0,66821.0,0.010196]
[1721543675721,2.17007215,66822.0,66821.0,0.010196]
[1721543676128,2.26007215,66822.0,66821.0,0.010196]
[1721543676340,2.25859163,66822.0,66821.0,0.010196]
[1721543676547,2.19497621,66822.0,66821.0,0.010196]
[1721543677382,2.17003954,66822.0,66821.0,0.010196]
[1721543677596,2.12859049,66822.0,66821.0,0.010196]
[1721543677799,2.1505951,66822.0,66821.0,0.010196]
[1721543677997,2.0605951,66822.0,66821.0,0.010196]
[1721543678173,2.19063934,66822.0,66821.0,0.010196]
[1721543678328,2.10210611,66822.0,66821.0,0.010196]
[1721543679133,2.20346455,66822.0,66821.0,0.010196]
[1721543680406,2.07342031,66822.0,66821.0,0.010196]
[1721543680612,1.58627831,66822.0,66821.0,0.010196]
[1721543680783,1.49833929,66822.0,66821.0,0.010196]
[1721543680991,1.02428674,66822.0,66821.0,0.010196]
[1721543681950,0.246721,66822.0,66821.0,0.010196]
[1721543682157,0.196721,66822.0,66821.0,0.010196]
[1721543682325,0.246721,66822.0,66821.0,0.010196]
[1721543682553,0.486163,66822.0,66821.0,0.02052914]
[1721543682738,0.486163,66822.0,66821.0,0.010196]
[1721543683124,0.5734621,66822.0,66821.0,0.010196]
[1721543683537,0.8129041,66822.0,66821.0,0.010196]
[1721543686052,0.246721,66822.0,66821.0,0.010196]
[1721543686488,0.127,66822.0,66821.0,0.010196]
[1721543686689,0.196721,66822.0,66821.0,0.010196]
[1721543686938,0.127,66822.0,66821.0,0.02051799]
[1721543687061,0.077,66822.0,66821.0,0.010196]
[1721543687255,0.127,66822.0,66821.0,0.010196]
[1721543688944,1.31234294,66822.0,66821.0,0.010196]
[1721543689159,1.26372874,66822.0,66821.0,0.010196]
[1721543699325,1.26456874,66822.0,66821.0,0.010196]
[1721543708134,1.33276874,66822.0,66821.0,0.010196]
[1721543709768,1.81991074,66822.0,66821.0,0.010196]
[1721543710029,2.29121092,66822.0,66821.0,0.010196]
[1721543710244,2.18041634,66822.0,66821.0,0.010196]
[1721543710864,2.16504685,66822.0,66821.0,0.010196]
[1721543711310,2.12098631,66822.0,66821.0,0.010196]
[1721543711513,2.16321216,66822.0,66821.0,0.010196]
[1721543714506,2.16178233,66822.0,66821.0,0.010196]
[1721543715187,2.08445692,66822.0,66821.0,0.010196]
[1721543716044,2.16180282,66822.0,66821.0,0.010196]
[1721543717497,2.21180282,66822.0,66821.0,0.010196]
[1721543717717,2.34355518,66822.0,66821.0,0.010196]
[1721543718127,2.30986513,66822.0,66821.0,0.010196]
[1721543718333,2.44306403,66822.0,66821.0,0.010196]
[1721543718506,2.30986513,66822.0,66821.0,0.010196]
[1721543720941,2.30874467,66822.0,66821.0,0.010196]
[1721543721164,2.44193218,66822.0,66821.0,0.010196]
[1721543721349,2.30874467,66822.0,66821.0,0.010196]
[1721543721564,2.35874467,66822.0,66821.0,0.010196]
[1721543722804,2.45874467,66822.0,66821.0,0.010196]
[1721543723878,2.3197979,66822.0,66821.0,0.010196]
[1721543724090,2.45792768,66822.0,66821.0,0.010196]
[1721543724891,2.40792768,66822.0,66821.0,0.010196]
[1721543726168,2.28972768,66822.0,66821.0,0.010196]
[1721543726381,2.18177382,66822.0,66821.0,0.010196]
[1721543727243,2.18574635,66822.0,66821.0,0.010196]
[1721543727880,1.48995478,66822.0,66821.0,0.010196]
[1721543729832,1.33175478,66822.0,66821.0,0.010196]
[1721543730033,1.34273943,66822.0,66821.0,0.010196]
[1721543730268,1.16371919,66822.0,66821.0,0.010196]
[1721543730406,1.25562875,66822.0,66821.0,0.010196]
[1721543730611,1.39911186,66822.0,66821.0,0.010196]
[1721543731868,1.31030936,66822.0,66821.0,0.010196]
[1721543732090,1.39912123,66822.0,66821.0,0.010196]
[1721543733293,1.31030936,66822.0,66821.0,0.010196]
[1721543733496,1.31017292,66822.0,66821.0,0.010196]
[1721543733710,1.39899047,66822.0,66821.0,0.010196]
[1721543733906,1.37827622,66822.0,66821.0,0.010196]
[1721543734643,1.39899394,66822.0,66821.0,0.010196]
[1721543735047,1.39899394,66822.0,66821.0,0.151396]
[1721543735048,0.12225676,66822.0,66821.0,0.151396]
[1721543735311,0.12784,66822.0,66821.0,0.15881097]
[1721543735535,0.247561,66822.0,66821.0,0.15881097]
[1721543735749,0.33146458,66822.0,66821.0,0.15881097]
[1721543735946,0.33146458,66822.0,66821.0,0.151396]
[1721543736148,0.31846458,66822.0,66821.0,0.151396]
[1721543736467,0.31846458,66822.0,66821.0,0.15881097]
[1721543736468,0.56490658,66822.0,66821.0,0.15881097]
[1721543736689,0.32546458,66822.0,66821.0,0.15881097]
[1721543736885,0.55090658,66822.0,66821.0,0.15781097]
[1721543737088,0.55090658,66822.0,66821.0,0.150396]
[1721543737089,0.59532286,66822.0,66821.0,0.150396]
[1721543737327,0.60332286,66822.0,66821.0,0.150396]
[1721543737527,0.55890658,66822.0,66821.0,0.150396]
[1721543738061,0.60332286,66822.0,66821.0,0.150396]
[1721543739720,1.48624711,66822.0,66821.0,0.009196]
[1721543739922,2.04308548,66822.0,66821.0,0.009196]
[1721543740128,1.9320514,66822.0,66821.0,0.009196]
[1721543740326,2.0897514,66822.0,66821.0,0.009196]
[1721543740567,2.1897514,66822.0,66821.0,0.009196]
[1721543741190,2.2397514,66822.0,66821.0,0.009196]
[1721543741399,2.31762994,66822.0,66821.0,0.009196]
[1721543741614,2.45087083,66822.0,66821.0,0.009196]
[1721543741874,2.4676959,66822.0,66821.0,0.009196]
[1721543742299,2.4606959,66822.0,66821.0,0.009196]
[1721543742711,2.2484839,66822.0,66821.0,0.009196]
[1721543742916,2.46368576,66822.0,66821.0,0.009196]
[1721543743270,2.39548576,66822.0,66821.0,0.009196]
[1721543743481,2.45568576,66822.0,66821.0,0.009196]
[1721543743839,2.46968576,66822.0,66821.0,0.009196]
[1721543744047,2.57208576,66822.0,66821.0,0.009196]
[1721543745023,2.49491097,66822.0,66821.0,0.009196]
[1721543745259,2.44491097,66822.0,66821.0,0.009196]
[1721543745873,2.44603387,66822.0,66821.0,0.009196]
[1721543747973,2.49603387,66822.0,66821.0,0.009196]
[1721543748214,2.44603387,66822.0,66821.0,0.009196]
[1721543748598,2.44631659,66822.0,66821.0,0.009196]
[1721543748799,2.49631659,66822.0,66821.0,0.009196]
[1721543749150,2.44631659,66822.0,66821.0,0.009196]
[1721543749359,2.44628975,66822.0,66821.0,0.009196]
[1721543749980,2.35628975,66822.0,66821.0,0.009196]
[1721543750925,2.32167268,66822.0,66821.0,0.009196]
[1721543751129,1.77583068,66822.0,66821.0,0.009196]
[1721543751551,1.86583068,66822.0,66821.0,0.009196]
[1721543752356,1.86734503,66822.0,66821.0,0.009196]
[1721543753551,1.86656288,66822.0,66821.0,0.009196]
[1721543753758,1.86655814,66822.0,66821.0,0.009196]
[1721543755600,1.86690497,66822.0,66821.0,0.009196]
[1721543756400,1.78300139,66822.0,66821.0,0.009196]
[1721543756809,1.68340779,66822.0,66821.0,0.009196]
[1721543757023,1.60477967,66822.0,66821.0,0.009196]
[1721543757237,1.58940148,66822.0,66821.0,0.009196]
[1721543757443,1.60477642,66822.0,66821.0,0.009196]
[1721543757843,1.81644192,66822.0,66821.0,0.009196]
[1721543758586,1.56455632,66822.0,66821.0,0.009196]
[1721543758788,1.81778438,66822.0,66821.0,0.009196]
[1721543759687,1.83895687,66822.0,66821.0,0.009196]
[1721543759911,1.74494545,66822.0,66821.0,0.009196]
[1721543760112,1.76032178,66822.0,66821.0,0.009196]
[1721543760312,1.97210194,66822.0,66821.0,0.009196]
[1721543760725,1.83892486,66822.0,66821.0,0.009196]
[1721543760960,1.97210194,66822.0,66821.0,0.009196]
[1721543761159,1.83866975,66822.0,66821.0,0.009196]
[1721543761608,1.97184095,66822.0,66821.0,0.009196]
[1721543761752,1.83866975,66822.0,66821.0,0.009196]
[1721543761953,1.65484754,66822.0,66821.0,0.009196]
[1721543762233,1.50049797,66822.0,66821.0,0.009196]
[1721543762984,1.51587332,66822.0,66821.0,0.009196]
[1721543764150,1.41347332,66822.0,66821.0,0.009196]
[1721543764286,1.41470584,66822.0,66821.0,0.009196]
[1721543764899,1.55368006,66822.0,66821.0,0.009196]
[1721543765098,1.63181852,66822.0,66821.0,0.009196]
[1721543766054,1.64719382,66822.0,66821.0,0.009196]
[1721543766912,1.63181852,66822.0,66821.0,0.009196]
[1721543767332,1.63210866,66822.0,66821.0,0.009196]
[1721543767918,1.64748318,66822.0,66821.0,0.009196]
[1721543768231,1.73748318,66822.0,66821.0,0.009196]
[1721543769032,1.72210866,66822.0,66821.0,0.009196]
[1721543769625,2.59849266,66822.0,66821.0,0.009196]
[1721543769858,2.70038895,66822.0,66821.0,0.009196]
[1721543770515,2.69140741,66822.0,66821.0,0.009196]
[1721543773774,2.69057915,66822.0,66821.0,0.009196]
[1721543776336,2.84035204,66822.0,66821.0,0.009196]
[1721543776534,1.578446,66812.0,66811.0,0.002]
[1721543776790,2.2672257,66812.0,66811.0,0.002]
[1721543777012,2.25923446,66812.0,66811.0,0.002]
[1721543777436,2.49871146,66812.0,66811.0,0.002]
[1721543777639,2.52171146,66812.0,66811.0,0.002]
[1721543777842,2.82583559,66812.0,66811.0,0.002]
[1721543778051,2.83983559,66812.0,66811.0,0.002]
[1721543778455,1.580763,66805.0,66804.0,0.009207]
[1721543778694,2.49079935,66805.0,66804.0,0.009207]
[1721543778900,2.35773356,66805.0,66804.0,0.009207]
[1721543779105,2.38073356,66805.0,66804.0,0.009207]
[1721543779630,2.25353356,66805.0,66804.0,0.009207]
[1721543779875,1.6689543,66805.0,66804.0,0.009207]
[1721543780086,1.96181468,66805.0,66804.0,0.009207]
[1721543780289,1.82369057,66805.0,66804.0,0.009207]
[1721543780493,2.03920886,66805.0,66804.0,0.009207]
[1721543780894,1.98920886,66805.0,66804.0,0.009207]
[1721543781125,2.56602643,66805.0,66804.0,0.009207]
[1721543781331,2.29774314,66805.0,66804.0,0.009207]
[1721543782023,2.43070814,66805.0,66804.0,0.009207]
[1721543782462,2.56502007,66805.0,66804.0,0.009207]
[1721543782595,2.43205507,66805.0,66804.0,0.009207]
[1721543782796,2.48070258,66805.0,66804.0,0.009207]
[1721543783445,2.48099414,66805.0,66804.0,0.009207]
[1721543783851,2.56517818,66805.0,66804.0,0.009207]
[1721543784050,3.0047332,66805.0,66804.0,0.009207]
[1721543784227,3.0277332,66805.0,66804.0,0.009207]
[1721543785458,3.0277332,66805.0,66804.0,0.00793752]
[1721543785670,3.0277332,66805.0,66789.0,0.05455684]
[1721543785671,1.435508,66802.0,66789.0,0.05455684]
[1721543785878,2.58961342,66802.0,66789.0,0.05455684]
[1721543786138,2.57875493,66802.0,66789.0,0.005042]
[1721543786581,2.77445453,66802.0,66789.0,0.005042]
[1721543786813,2.53494153,66802.0,66789.0,0.005042]
[1721543787037,2.6892911,66802.0,66789.0,0.005042]
[1721543787425,2.77929014,66802.0,66789.0,0.005042]
[1721543788233,2.79329014,66802.0,66789.0,0.005042]
[1721543788642,2.7241045,66802.0,66789.0,0.005042]
[1721543788994,2.7241045,66802.0,66795.0,0.1407]
[1721543788995,1.91840371,66802.0,66795.0,0.1407]
[1721543789202,1.83284963,66802.0,66795.0,0.1407]
[1721543789405,0.91208437,66802.0,66795.0,0.1407]
[1721543789606,0.82218958,66802.0,66795.0,0.1407]
[1721543789832,0.77623464,66802.0,66795.0,0.1407]
[1721543790078,1.01574764,66802.0,66795.0,0.1407]
[1721543790254,1.26009721,66802.0,66795.0,0.1407]
[1721543790481,1.61900135,66802.0,66795.0,0.1407]
[1721543790836,1.71900135,66802.0,66795.0,0.1407]
[1721543791237,2.00220879,66802.0,66791.0,0.002]
[1721543791439,1.9817657,66802.0,66791.0,0.002]
[1721543791639,2.06109878,66802.0,66791.0,0.002]
[1721543792060,2.11109878,66802.0,66791.0,0.002]
[1721543792213,2.0830248,66802.0,66791.0,0.002]
[1721543792436,2.10594272,66802.0,66791.0,0.002]
[1721543792638,2.34545572,66802.0,66791.0,0.002]
[1721543792846,2.42307534,66802.0,66791.0,0.002]
[1721543793647,2.4781203,66802.0,66791.0,0.002]
[1721543794180,2.34545572,66802.0,66791.0,0.002]
[1721543794761,2.39164136,66802.0,66791.0,0.002]
[1721543794999,2.58496872,66802.0,66791.0,0.002]
[1721543795403,2.58290761,66802.0,66791.0,0.002]
[1721543795813,2.34339461,66802.0,66791.0,0.002]
[1721543796225,2.08049461,66802.0,66801.0,0.002924]
[1721543796466,2.14869461,66802.0,66801.0,0.002924]
[1721543796793,2.14869461,66802.0,66801.0,0.0036329]
[1721543797179,2.2592212,66802.0,66801.0,0.0036329]
[1721543798521,2.31106275,66802.0,66801.0,0.0036329]
[1721543798731,2.20054491,66802.0,66801.0,0.0036329]
[1721543798938,2.15054491,66802.0,66801.0,0.0036329]
[1721543799657,2.20054491,66802.0,66801.0,0.0036329]
[1721543800648,2.27834491,66802.0,66801.0,0.0036329]
[1721543801768,2.22800286,66802.0,66801.0,0.0036329]
[1721543802168,2.33851717,66802.0,66801.0,0.0036329]
[1721543802374,1.7486546,66802.0,66801.0,0.0036329]
[1721543802593,1.7486546,66802.0,66801.0,0.0798329]
[1721543802594,1.01537457,66802.0,66801.0,0.0798329]
[1721543802794,0.94936374,66802.0,66801.0,0.1407329]
[1721543802998,1.3040882,66802.0,66801.0,0.1407329]
[1721543803219,1.18887674,66802.0,66801.0,0.1407329]
[1721543803617,1.27887674,66802.0,66801.0,0.1407329]
[1721543804064,1.31067674,66802.0,66801.0,0.1407329]
[1721543806142,1.22067674,66802.0,66801.0,0.1407329]
[1721543806343,1.36302076,66802.0,66801.0,0.1407329]
[1721543806537,0.98116374,66802.0,66801.0,0.1407329]
[1721543807578,0.96716374,66802.0,66801.0,0.1407329]
[1721543807819,0.98116374,66802.0,66801.0,0.1407329]
[1721543808287,0.96716374,66802.0,66801.0,0.1407329]
[1721543808455,0.98116374,66802.0,66801.0,0.1407329]
[1721543808680,0.71999414,66802.0,66801.0,0.1407329]
[1721543808889,0.76999414,66802.0,66801.0,0.1407329]
[1721543809081,0.75599414,66802.0,66801.0,0.1407329]
[1721543809266,0.61365074,66802.0,66801.0,0.14767421]
[1721543809418,0.62765074,66802.0,66801.0,0.14767421]
[1721543809849,0.64165074,66802.0,66801.0,0.14767421]
[1721543810103,0.62765074,66802.0,66801.0,0.14767421]
[1721543810276,0.61365074,66802.0,66801.0,0.14767421]
[1721543810478,1.04196261,66802.0,66801.0,0.01057421]
[1721543810680,0.95196261,66802.0,66801.0,0.0036329]
[1721543810983,1.28147561,66802.0,66801.0,0.0036329]
[1721543811154,1.29147561,66802.0,66801.0,0.0036329]
[1721543811573,1.30147561,66802.0,66801.0,0.0036329]
[1721543811985,1.20147561,66802.0,66801.0,0.0036329]
[1721543812346,1.21047561,66802.0,66801.0,0.0036329]
[1721543812546,1.30047561,66802.0,66801.0,0.0036329]
[1721543814521,1.34475207,66802.0,66801.0,0.0036329]
[1721543814877,1.79196507,66802.0,66801.0,0.0036329]
[1721543815203,2.03409085,66802.0,66801.0,0.0036329]
[1721543815409,1.94553792,66802.0,66801.0,0.0036329]
[1721543815785,1.99553792,66802.0,66801.0,0.0036329]
[1721543815984,2.10622909,66802.0,66801.0,0.0036329]
[1721543816212,1.99553792,66802.0,66801.0,0.0036329]
[1721543816460,2.02380388,66802.0,66801.0,0.0036329]
[1721543817284,2.03413579,66802.0,66801.0,0.0036329]
[1721543817482,1.91575831,66802.0,66801.0,0.0036329]
[1721543817642,2.03239471,66802.0,66801.0,0.0036329]
[1721543818364,1.79288171,66802.0,66801.0,0.0036329]
[1721543818772,1.94379828,66802.0,66801.0,0.0036329]
[1721543819286,2.02235757,66802.0,66801.0,0.0036329]
[1721543819718,2.07235757,66802.0,66801.0,0.0036329]
[1721543819903,2.02235757,66802.0,66801.0,0.0036329]
[1721543820447,2.0220126,66802.0,66801.0,0.0036329]
[1721543820651,1.78203735,66802.0,66801.0,0.0036329]
[1721543820835,1.76003735,66802.0,66801.0,0.0036329]
[1721543821243,2.00455035,66802.0,66801.0,0.0036329]
[1721543821602,1.77903735,66802.0,66801.0,0.0036329]
[1721543821813,1.72903735,66802.0,66801.0,0.0036329]
[1721543822362,1.65082303,66802.0,66801.0,0.0036329]
[1721543822991,1.62324531,66802.0,66801.0,0.0036329]
[1721543823218,1.65214454,66802.0,66801.0,0.0036329]
[1721543824165,1.72044454,66802.0,66801.0,0.0036329]
[1721543824323,2.23395866,66802.0,66801.0,0.0036329]
[1721543825091,2.36695816,66802.0,66801.0,0.0036329]
[1721543826123,2.2323394,66802.0,66801.0,0.0036329]
[1721543826495,2.36533933,66802.0,66801.0,0.0036329]
[1721543826721,2.12715831,66802.0,66801.0,0.0036329]
[1721543826926,2.36414582,66802.0,66801.0,0.0036329]
[1721543827624,1.92853282,66802.0,66801.0,0.0036329]
[1721543827850,1.69154531,66802.0,66801.0,0.0036329]
[1721543827988,1.79766504,66802.0,66801.0,0.0036329]
[1721543828395,1.88036504,66802.0,66801.0,0.0036329]
[1721543828616,1.93036504,66802.0,66801.0,0.0036329]
[1721543828825,1.82424531,66802.0,66801.0,0.0036329]
[1721543828997,1.93052851,66802.0,66801.0,0.0036329]
[1721543829577,1.93071273,66802.0,66801.0,0.0036329]
[1721543829780,2.17022573,66802.0,66801.0,0.0036329]
[1721543829954,1.93071273,66802.0,66801.0,0.0036329]
[1721543831145,2.17022573,66802.0,66801.0,0.0036329]
[1721543831594,2.36776574,66802.0,66801.0,0.0036329]
[1721543832675,2.36282297,66802.0,66801.0,0.0036329]
[1721543834687,2.31282297,66802.0,66801.0,0.0036329]
[1721543834939,2.16762297,66802.0,66801.0,0.0036329]
[1721543835736,2.09030277,66802.0,66801.0,0.0036329]
[1721543835934,2.1688214,66802.0,66801.0,0.0036329]
[1721543836128,2.2188214,66802.0,66801.0,0.0036329]
[1721543836358,2.1688214,66802.0,66801.0,0.0036329]
[1721543836559,2.2188214,66802.0,66801.0,0.0036329]
[1721543837204,2.2953214,66802.0,66801.0,0.0036329]
[1721543837328,2.3578214,66802.0,66801.0,0.0036329]
[1721543837791,2.5973344,66802.0,66801.0,0.0036329]
[1721543838001,2.3578214,66802.0,66801.0,0.0036329]
[1721543838333,2.5973344,66802.0,66801.0,0.0036329]
[1721543838860,2.49347444,66802.0,66801.0,0.0036329]
[1721543839066,2.59255616,66802.0,66801.0,0.0036329]
[1721543839487,2.35304316,66802.0,66801.0,0.0036329]
[1721543840571,2.30304316,66802.0,66801.0,0.0036329]
[1721543841854,2.19935259,66802.0,66801.0,0.0036329]
[1721543842061,2.30733529,66802.0,66801.0,0.0036329]
[1721543842688,2.35733529,66802.0,66801.0,0.0036329]
[1721543843443,2.50698553,66802.0,66801.0,0.0036329]
[1721543843997,2.74649853,66802.0,66801.0,0.0036329]
[1721543844540,2.50698553,66802.0,66801.0,0.0036329]
[1721543844688,2.74649853,66802.0,66801.0,0.0036329]
[1721543844888,2.42769125,66802.0,66801.0,0.0036329]
[1721543845229,2.50632098,66802.0,66801.0,0.0036329]
[1721543845429,2.74583398,66802.0,66801.0,0.0036329]
[1721543845635,2.50642098,66802.0,66801.0,0.0036329]
[1721543846038,2.50642098,66802.0,66791.0,0.002]
[1721543846039,1.52467,66792.0,66791.0,0.002]
[1721543846244,2.24203387,66792.0,66791.0,0.002]
[1721543846652,2.48158287,66792.0,66791.0,0.002]
[1721543846822,2.63119464,66792.0,66791.0,0.002]
[1721543847026,2.48158287,66792.0,66791.0,1e-06]
[1721543847234,2.48158287,66792.0,66782.0,0.01]
[1721543847235,0.47749,66783.0,66782.0,0.01]
[1721543847452,0.616492,66782.0,66779.0,0.00086991]
[1721543847689,1.435954,66782.0,66781.0,0.00039648]
[1721543847812,1.435954,66782.0,66775.0,0.05900935]
[1721543847813,0.477503,66776.0,66775.0,0.05900935]
[1721543848045,0.717121,66774.0,66762.0,0.0001]
[1721543848254,0.477508,66773.0,66762.0,0.0001]
[1721543848459,0.793631,66772.0,66762.0,0.0001]
[1721543848663,1.90490821,66772.0,66762.0,0.0001]
[1721543848867,0.3577,66763.0,66762.0,0.0001]
[1721543849081,1.82920638,66763.0,66762.0,0.0001]
[1721543849313,2.07358875,66763.0,66762.0,0.0001]
[1721543849520,2.17793832,66763.0,66762.0,0.0001]
[1721543849731,2.03246353,66763.0,66762.0,0.0001]
[1721543849943,1.86111053,66763.0,66762.0,0.0001]
[1721543850147,1.86111053,66763.0,66755.0,0.009196]
[1721543850148,0.15,66756.0,66755.0,0.009196]